Cogmind - Beta 15 @@@ ROGUE MODE // 2025.07.06 @ 22:45:49 Player: Skysub Result: Destroyed by 6E-0BV(R) with Subdweller Shrapnel Launcher Performance ------------- Evolutions (0) 0 Regions Visited (2) 400 Robots Destroyed (26) 130 Value Destroyed (632) 632 Prototype IDs (1) 20 Alien Tech Used (0) 0 Bonus (0) 0 TOTAL SCORE: 1182 Bonus ------- None Cogmind --------- Core Integrity 0/250 Matter 18/300 Energy 100/100 System Corruption 0% Temperature Cool (0) Movement Rolling (110) Ox2 Location -10/Subcaves Parts ------- > --- POWER (1) -------- (None) > --- PROPULSION (2) --- Light Treads Wheel > --- UTILITY (2) ------ Large Storage Unit Structural Scanner > --- WEAPON (2) ------- Autogun Subdweller Machine Gun > --- INVENTORY (15) --- Ion Engine Subdweller Power Source Subdweller Monowheel Improved Flight Unit Small Storage Unit Structural Scanner Subdweller Optics Subdweller Optics Subdweller Optics Subdweller Laser Subdweller Laser Autogun Subdweller Machine Gun Mining Laser Mace Peak State ------------ > --- POWER ------------ Ion Engine > --- PROPULSION ------- Light Treads Improved Flight Unit > --- UTILITY ---------- Small Storage Unit Large Storage Unit > --- WEAPON ----------- Autogun Autogun > --- INVENTORY -------- Ion Engine Wheel Autogun Autogun Mining Laser [Rating: 11] Favorites ----------- Power Ion Engine Engine Ion Engine Propulsion Light Treads Treads Light Treads Wheel Wheel Flight Unit Improved Flight Unit Utility Large Storage Unit Device Structural Scanner Storage Large Storage Unit Weapon Autogun Ballistic Gun Autogun Impact Weapon Mace Build | -11 -10 -10 ------- Run | Yrd Mat Sub Slots Evolved . | . . . Power . | . . . Propulsion . | . . . Utility . | . . . Weapon . | . . . Parts Attached 18 | 6 8 4 Power 2 | 1 1 . Engine 2 | 1 1 . Core . | . . . Reactor . | . . . Propulsion 5 | 2 1 2 Treads 3 | 2 . 1 Leg . | . . . Wheel 1 | . . 1 Hover . | . . . Flight 1 | . 1 . Utility 3 | 1 2 . Device 1 | . 1 . Storage 2 | 1 1 . Processor . | . . . Hackware . | . . . Protection . | . . . Artifact . | . . . Weapon 8 | 2 4 2 Energy Gun . | . . . Energy Cannon . | . . . Ballistic Gun 7 | 2 3 2 Ballistic Cannon . | . . . Launcher . | . . . Special Weapon . | . . . Impact Weapon 1 | . 1 . Slashing Weapon . | . . . Piercing Weapon . | . . . Special Melee Weapon . | . . . Unidentified Prototypes 1 | . 1 . Parts Lost 6 | . 1 5 Power 2 | . 1 1 Propulsion 2 | . . 2 Utility . | . . . Weapon 2 | . . 2 Highest Loss Streak 2 | . 1 2 To Critical Strikes . | . . . Average Backups 8 | 1 7 12 Power 1 | . 1 1 Propulsion 1 | . 1 2 Utility 2 | . 1 3 Weapon 3 | . 3 4 Tool/Special . | . . . Unused Backups 9 | . . 9 Power 2 | . . 2 Propulsion . | . . . Utility 4 | . . 4 Weapon 3 | . . 3 Tool/Special . | . . . Average Slot Usage (%) 91 | . 96 85 Engine 8 | . 13 2 Treads 26 | . 27 25 Device 11 | . 9 14 Storage 15 | . 15 14 Ballistic Gun 26 | . 26 27 Impact Weapon 1 | . 1 . Peak Build Rating 11 | 6 11 10 Average Rating 9 | 5 9 9 On Entrance 5 | . 6 10 Naked Turns . | . . . Heaviest Build 36 | 12 36 30 Greatest Support 40 | 40 40 40 Greatest Overweight (x) 2 | . 1 2 Average Overweight (x) . | . . . Largest Inventory Capacity 15 | 8 15 15 Average Capacity 13 | 7 13 15 Most Carried 15 | 3 10 15 Average Carried 8 | 1 7 12 Final Capacity 15 | 8 15 15 Final Carried 15 | 3 10 15 Class Distribution -------------------- 100% | Mutant Dominant Class ---------------- Mutant | -10/Materials Mutant | -10/Subcaves Resources | -11 -10 -10 ----------- Run | Yrd Mat Sub Matter Collected 664 | 246 327 91 Remotely . | . . . Salvage Created 929 | 170 532 227 Parts 51 | 9 28 14 Haulers Intercepted 1 | . 1 . Recyclers Shooed . | . . . Parts Field Recycled . | . . . Retrieved Matter . | . . . Parts Self-Destructed 6 | . . 6 Prevented . | . . . Kills | -11 -10 -10 ------- Run | Yrd Mat Sub Combat Hostiles Destroyed 20 | . 15 5 Melee 1 | . 1 . Guns 18 | . 13 5 Classes Destroyed 7 | 3 3 1 Worker 1 | 1 . . Tunneler 3 | 3 . . Hauler 1 | . 1 . Recycler 1 | 1 . . Swarmer 6 | . 6 . Grunt 9 | . 9 . Subdweller 5 | . . 5 Best Kill Streak 7 | 5 7 2 Combat Bots Only 7 | . 7 2 Max Kills in Single Turn 2 | 2 1 1 Gunslinging . | . . . Exploded . | . . . Melee 1 | . 1 . Uniques/NPCs Destroyed . | . . . Combat | -11 -10 -10 -------- Run | Yrd Mat Sub Hostile Shots Fired 112 | . 80 32 Missed 33 | . 21 12 Hits 79 | . 59 20 Projectile 79 | . 59 20 AOE 3 | . . 3 Damage Taken 1163 | . 602 561 Core 260 | . 74 186 Absorbed by Shields . | . . . Core Remaining (%) 100 | 100 . . Volleys Fired 88 | 15 43 30 Largest 2 | 2 2 2 Hottest 53 | 40 46 53 Shots Fired 170 | 30 86 54 Gun 170 | 30 86 54 Cannon . | . . . Launcher . | . . . Special . | . . . Kinetic 170 | 30 86 54 Thermal . | . . . Explosive . | . . . Electromagnetic . | . . . Robot Hit Streak 12 | 12 12 6 Robot Miss Streak 6 | 2 6 3 Penetration Max . | . . . Secondary Targets . | . . . Shots Hit Robots 115 | 21 57 37 Core Hits 38 | 10 18 10 Critical Kills 1 | . 1 . Critical Parts Destroyed . | . . . Critical Strikes 1 | . 1 . Smash 1 | . 1 . Melee Attacks 12 | . 12 . Impact 12 | . 12 . Slashing . | . . . Piercing . | . . . Sneak Attacks . | . . . Combat Hostiles . | . . . Follow-up Attacks . | . . . Damage Inflicted 1697 | 174 1028 495 Guns 1463 | 174 794 495 Cannons . | . . . Explosions . | . . . Melee 231 | . 231 . Ramming 3 | . 3 . Kinetic 1463 | 174 794 495 Thermal . | . . . Explosive . | . . . Electromagnetic . | . . . Impact 231 | . 231 . Slashing . | . . . Piercing . | . . . Highest Corruption . | . . . Average Corruption . | . . . Corruption Purged . | . . . Corruption Blocked . | . . . Overload Shots . | . . . Overflow Damage 32 | . 32 . Projectiles . | . . . Explosions . | . . . Melee 32 | . 32 . Knockbacks 3 | . 3 . Impact 3 | . 3 . Kinetic . | . . . Secondary . | . . . Self-Inflicted Damage . | . . . Shots . | . . . Rammed 1 | . 1 . Targets Rammed 1 | . 1 . Kicked . | . . . Crushed . | . . . Highest Temperature 27 | . 27 . Average Temperature 11 | . 11 . Received Heat Transfer 279 | . 231 48 Siege Activations . | . . . Martial Activations . | . . . Shielding Activations . | . . . Robots Disrupted . | . . . Combat Hostiles . | . . . Robots Corrupted 1 | . 1 . Combat Hostiles 1 | . 1 . Parts Fried . | . . . Impact Corruptions 2 | . 2 . Robots Melted . | . . . Combat Hostiles . | . . . Parts Melted . | . . . Heat Transferred . | . . . Parts Sabotaged . | . . . Parts Stolen . | . . . Parts Stripped . | . . . Power Chain Reactions . | . . . Alert | -11 -10 -10 ------- Run | Yrd Mat Sub Maximum Alert Level 1 | . 1 . Low Security (%) 94 | 100 93 . Level 1 5 | . 6 . Level 2 . | . . . Level 3 . | . . . Level 4 . | . . . Level 5 . | . . . High Security . | . . . Max Security . | . . . Peak Influence 213 | 10 213 . Initial 6 | . 6 . Average 56 | 2 66 . Influence Increases 501 | 25 476 . Destroy 0b10 Robot/C 300 | . 300 . Destroy 0b10 Robot/NC 30 | 25 5 . Destroy Leader 72 | . 72 . Successful Hack 22 | . 22 . Select Force Hacks 30 | . 30 . Disable Machine 15 | . 15 . Destroy Structure 2 | . 2 . Lose Combat Pursuer 30 | . 30 . Influence Decreases 501 | 15 308 178 Entered New Map 90 | . 4 86 Time Decay 391 | 15 294 82 Lost Part 20 | . 10 10 Squads Dispatched 4 | . 4 . Investigation 3 | . 3 . Extermination . | . . . Reinforcement 1 | . 1 . Assault . | . . . Garrison . | . . . Intercept . | . . . Searches Triggered . | . . . Construction Impeded . | . . . Haulers Reinforced . | . . . Active Scanning Responses . | . . . Cargo Convoy Interrupts . | . . . Stealth | -11 -10 -10 --------- Run | Yrd Mat Sub Distress Signals 2 | . 2 . Communications Jammed . | . . . Distress Signals . | . . . Times Spotted 30 | . 24 6 Peak Tracking Total 4 | . 4 1 Tactical Retreats 2 | . 2 . Traps | -11 -10 -10 ------- Run | Yrd Mat Sub Traps Triggered 2 | . 2 . Indirectly . | . . . Trap Hack Attempts . | . . . Triggered . | . . . Disarmed . | . . . Reprogrammed . | . . . Reused . | . . . Traps Extracted . | . . . Installed . | . . . Triggered . | . . . Machines | -11 -10 -10 ---------- Run | Yrd Mat Sub Machines Disabled 1 | . 1 . Max in Single Turn 1 | . 1 . Machines Repaired . | . . . Machines Dismantled . | . . . Machines Sabotaged . | . . . Overloaded Fab Kills . | . . . Hacking | -11 -10 -10 --------- Run | Yrd Mat Sub Machines Accessed 8 | . 7 1 Terminals 6 | . 6 . Fabricators . | . . . Repair Stations . | . . . Recycling Units 1 | . 1 . Scanalyzers . | . . . Garrison Access . | . . . Total Hacks 19 | . 18 1 Successful 13 | . 12 1 Failed 6 | . 6 . Catastrophic . | . . . Database Lockouts . | . . . Manual 16 | . 16 . Terminals 16 | . 16 . Fabricators . | . . . Repair Stations . | . . . Recycling Units 2 | . 2 . Scanalyzers . | . . . Garrison Access . | . . . Terminal Hacks 3 | . 2 1 Open Door 1 | . . 1 Terminal Index 1 | . 1 . Zone Layout 1 | . 1 . Fabricator Hacks . | . . . Repair Station Hacks . | . . . Recycling Unit Hacks 1 | . 1 . Report Inventory 1 | . 1 . Scanalyzer . | . . . Garrison Access Hacks . | . . . Unauthorized Hacks 9 | . 9 . Terminals 8 | . 8 . Botnet 2 | . 2 . Skim 6 | . 6 . Fabricators . | . . . Repair Stations . | . . . Recycling Units 1 | . 1 . Tunnel 1 | . 1 . Scanalyzers . | . . . Garrison Access . | . . . Data Cores Recovered . | . . . Used . | . . . Hacking Detections 3 | . 3 . Full Trace Events . | . . . Feedback Events . | . . . Feedback Blocked . | . . . Robot Schematics Acquired . | . . . Robots Built . | . . . Authchips . | . . . Time . | . . . Total Robot Build Rating . | . . . Part Schematics Acquired . | . . . Parts Built . | . . . Authchips . | . . . Time . | . . . Total Part Build Rating . | . . . Parts Repaired . | . . . Time . | . . . Parts Recycled . | . . . Recycled Matter . | . . . Retrieved Matter . | . . . Retrieved Components . | . . . Parts Scanalyzed . | . . . Part Schematics Acquired . | . . . Parts Damaged . | . . . Bothacking | -11 -10 -10 ------------ Run | Yrd Mat Sub Used RIF Installer . | . . . Robots Hacked . | . . . Non-combat . | . . . Combat . | . . . Robot Hacks Applied . | . . . Relay Couplers Released . | . . . Fabnet Peak Effective % . | . . . Robots Rewired . | . . . Allies Hacked . | . . . Hacks Repelled . | . . . Allies | -11 -10 -10 -------- Run | Yrd Mat Sub Total Allies . | . . . Largest Group . | . . . Highest-Rated Group . | . . . Highest-Rated Ally . | . . . Total Orders . | . . . Ally Attacks . | . . . Total Damage . | . . . Kills . | . . . Allies Corrupted . | . . . Allies Melted . | . . . Intel | -11 -10 -10 ------- Run | Yrd Mat Sub Active Infowar (turns) 1120 | . 555 565 Structural 1120 | . 555 565 Robot Analysis Total . | . . . Derelict Logs Recovered . | . . . Drone Launches . | . . . Drone Recoveries . | . . . Exploration | -11 -10 -10 ------------- Run | Yrd Mat Sub Turns Passed 1513 | 137 811 565 Spaces Moved 712 | 58 375 279 Core 5 | 5 . . Treads 649 | 53 375 221 Legs . | . . . Wheels 58 | . . 58 Hover . | . . . Flight . | . . . Fastest Speed 50 | 50 160 110 Average Speed 156 | 150 160 151 Slowest Speed 240 | 160 240 240 Overloaded Moves . | . . . Propulsion Burnouts . | . . . Robots Hopped . | . . . Potential Cave-ins . | . . . Cave-ins Triggered . | . . . Exploration Rate (%) 37 | 5 84 24 Regions Visited 2 Branch Regions 1 Pre-discovered Areas 3 | . 3 . Known Exits Taken . | . . . Unknown Exits Taken 2 | 1 1 . Scrap Searched . | . . . Spaces Dug 1 | . 1 . Terrain Destroyed 1 | . 1 . Melee 1 | . 1 . Projectile . | . . . AOE . | . . . Terrain Rammed . | . . . Walls Destroyed . | . . . Machines Disabled . | . . . Actions | -11 -10 -10 --------- Run | Yrd Mat Sub Total 948 | 81 491 376 Wait 98 | . 43 55 Move 710 | 57 374 279 Hop . | . . . Pick Up 17 | 3 6 8 Fast Attach 9 | 6 2 1 Attach 3 | . . 3 Detach . | . . . Swap 8 | . 8 . Drop 2 | . 2 . Fire 88 | 15 43 30 Melee 12 | . 12 . Ram . | . . . Kick . | . . . Crush 1 | . 1 . Escape Stasis . | . . . Rewire . | . . . Trap . | . . . Miscellaneous . | . . . Route ------- -11/Scrapyard -10/Materials (discovered 6 exits: *Mat x3 / *Min x2 / *Sub) -10/Subcaves History --------- Turn | Location | Event 4 | -11/Scrapyard | Discovered new exit (range 15) 138 | -11/Scrapyard | Entered Materials 257 | -10/Materials | Discovered new exit (range 10) 291 | -10/Materials | Discovered new exit (range 15) 302 | -10/Materials | Build established: Mutant 597 | -10/Materials | Discovered new exit (range 3) 764 | -10/Materials | Destroyed 7 combat bots 792 | -10/Materials | Discovered new exit (range 6) 831 | -10/Materials | Learned 2 Mines zone layouts 867 | -10/Materials | Learned location of Subcaves (-10) 891 | -10/Materials | Learned 2 Storage zone layouts 903 | -10/Materials | Learned Storage security intel 906 | -10/Materials | Learned 4 Subcaves zone layouts 907 | -10/Materials | Identified exit to Materials 908 | -10/Materials | Learned Storage emergency access door positions 909 | -10/Materials | Learned Storage stockpile data 911 | -10/Materials | Learned 2 Mines zone layouts 923 | -10/Materials | Identified exit to Mines 923 | -10/Materials | Learned location of 2 exits from Materials 949 | -10/Materials | Entered Subcaves 950 | -10/Subcaves | Approached by a straggling Scientist 1032 | -10/Subcaves | Shifting Twisted Machinery released Flamer 1034 | -10/Subcaves | Shifting Twisted Machinery released Riot Gun 1395 | -10/Subcaves | Core integrity fell below 50% 1514 | -10/Subcaves | Destroyed by 6E-0BV(R) with Subdweller Shrapnel Launcher Last Messages --------------- 01199_ Connecting with UFD SUBCON Station... 01199_ Current location identified: Subcaves >>Open Door Sealed Heavy Doors opened. YX-WKK(c): "I think it's somewhere northwest of here" 01291_ Subatomizers dissect the Disposable Heat Sink. YX-WKK(c): "I think it's somewhere west of here" 01389_ 1K-LYK(R): "SUBSUUUUUB!" 01396_ Lgt. Treads destroyed. 01398_ Autogun destroyed. YX-WKK(c): "I think it's somewhere west of here" 01409_ 1K-LYK(R) destroyed. 01410_ Acquired 39 matter. 01415_ Acquired Sub. Machine Gun. 01419_ Acquired Sub. Optics. YX-WKK(c): "I think it's somewhere west of here" 01495_ SE-4I3(R) destroyed. 01505_ Acquired Sub. Laser. 01507_ Acquired Sub. Monowheel. YX-WKK(c): "I think it's somewhere southwest of here" Map ----- +----------------------------------------------------+ | ?????????????????????????????????????????????????? | | ?????????????????????????????????????????????????? | | ?????????????????????????????????????????????????? | | ?????????????????????????????????????????????????? | | ?????????????????????????????????????????????????? | | ?????????????????????????????????????????????????? | | ?????????????????????????????????????????????????? | | ?????????????????????????????????????????????????? | | ?????????????????????????????????????????????????? | | ?????????????????????????????????????????????????? | | ?????????????????????????????????????????????????? | | ?????????????????????????????????????????????????? | | ??????????????????????????######?????????????????? | | ?????????????????????????########????????????????? | | ????????????????###?????#### ####???????????????? | | ????????????????<########## #####?????????????? | | ???????????????? ######## #####????????????? | | ????????????????? # # # # ####???????????? | | ?????????????????? ###???????????? | | ???????????????????? c ##?####??????? | | ????????????????????# ## ########?????? | | ???????????????????###;##;; #### #####???? | | ??????????????????####; ### ####???? | | ??????????????????###; ### ##???? | | ?????????????????### ## ## ###???? | | ????????????????#### @ ## ##????? | | ???????????????### "" * ## ##????? | | ???????????????## ""R # ##????? | | ??????????????? """" ;; ; ## ## ##????? | | ?????????????????"" "####;;;### ### ###????? | | ???????????????#""" ########### #### ###????? | | ???????????????##"""""????######## " ######?????? | | ???????????????##"""""??????????## " #####???????? | | ??????????????? """????????????### " ###???????? | | ?????????????????????????? ###### " ##???????? | | ??????????????????????????####### ###???????? | | ??????????????????????????## ## ###???????? | | ?????????????????????????### ###????????? | | ????????????????????????####" ###?###????? | | ????????????????????????###" "" " #### #????? | | ????????????????????????##" """ """ ## #????? | | ????????????????????????#### "##""##" ##????? | | ????????????????????????#### "###### ###?????? | | ????????????????????????### """####"" ###?????? | | ????????????????????????## "" ##??????? | | ????????????????????????## "" ###?????? | | ????????????????????????#### "" #?????? | | ????????????????????????#### "" #?????? | | ?????????????????????????### ## "" #?????? | | ????????????????????????#### ## "" ##???????? | +----------------------------------------------------+ Best States ------------- Heat Dissipation 25 Energy Generation 10 Energy Capacity 250 Matter Stores 300 Matter Capacity 300 Sight Range 16 Terrain Scan Density 10 Evasion (%) 40 Recoil Reduction 2 Item Schematics ----------------- None Robot Schematics ------------------ None Fabricated ------------ Nothing Repaired ---------- Nothing Alien Tech Used ----------------- None Achievements -------------- None Challenges ------------ None Game ------ Seed SensorStructuralNanosword Manual? 0 Play Time 00:09:35 Cumulative 140.6 hours Start 2025.07.06 @ 22:38:17 End 2025.07.06 @ 22:45:49 Sessions 1 Manual Loads 0 Difficulty Rogue Special Mode None Game No. 151 Rogue 151 Adventurer 0 Explorer 0 Win Type - Total 3 Types 1/0/0/1/0/0/0/0/0/1 Lore% 63 Gallery% 59 Achievement% 52 Wizard Run 0 Options --------- Layout 1 ASCII 0 Keyboard 1 Movement Numpad Keybinds 0 Fullscreen 1 Font 32/SmallcapsGlow Map View 77x35 Zoom Use 0% Tactical HUD 1 Map Filters NONE Filters NONE Steam 1 RUN: 24eb46f5-2c88-4e69-9c19-ddcb6495a6ad